[Event "Championnat d'Europe Rapide"]
[Date "2024.12.07"]
[White "Pancevski, Filip"]
[Black "Narva, Triin"]
[WhiteElo "2420"]
[BlackElo "2064"]
[Round "4.51"]
[Result "1-0"]
[TimeControl "900+10"]

1. e4 {[%emt 02:01:43] [%clk 00:15:17]} c5 {[%emt 00:00:02] [%clk 00:15:18]} 2.
Nf3 {[%emt 00:00:05] [%clk 00:15:24]} d6 {[%clk 00:15:27]} 3. Bb5+ {[%clk
00:15:33]} Bd7 {[%emt 00:00:02] [%clk 00:15:35]} 4. Bxd7+ {[%emt 00:00:02] [%clk
00:15:41]} Qxd7 {[%emt 00:00:06] [%clk 00:15:39]} 5. c4 {[%emt 00:00:02] [%clk
00:15:49]} Nf6 {[%emt 00:00:18] [%clk 00:15:30]} 6. Nc3 {[%emt 00:00:02] [%clk
00:15:58]} Nc6 {[%emt 00:00:11] [%clk 00:15:29]} 7. d4 {[%emt 00:00:02] [%clk
00:16:05]} cxd4 {[%emt 00:01:21] [%clk 00:14:19]} 8. Nxd4 {[%emt 00:00:01] [%clk
00:16:13]} g6 {[%emt 00:00:02] [%clk 00:14:28]} 9. f3 {[%emt 00:00:03] [%clk
00:16:20]} Bg7 {[%emt 00:00:05] [%clk 00:14:33]} 10. Nde2 {[%emt 00:00:02] [%clk
00:16:28]} h5 {[%emt 00:01:20] [%clk 00:13:24]} 11. Bg5 {[%emt 00:00:18] [%clk
00:16:20]} Nh7 {[%emt 00:04:56] [%clk 00:08:39]} 12. Be3 {[%emt 00:00:35] [%clk
00:15:54]} b6 {[%emt 00:00:57] [%clk 00:07:53]} 13. O-O {[%emt 00:00:07] [%clk
00:15:55]} h4 {[%emt 00:01:32] [%clk 00:06:32]} 14. h3 {[%emt 00:00:30] [%clk
00:15:36]} Nf6 {[%emt 00:01:47] [%clk 00:04:55]} 15. Bg5 {[%emt 00:02:22] [%clk
00:13:24]} Rh5 {[%emt 00:00:24] [%clk 00:04:42]} 16. Qd2 {[%emt 00:00:45] [%clk
00:12:49]} Rc8 {[%emt 00:00:52] [%clk 00:04:00]} 17. b3 {[%emt 00:01:12] [%clk
00:11:47]} Nd8 {[%emt 00:00:18] [%clk 00:03:52]} 18. Be3 {[%emt 00:00:26] [%clk
00:11:31]} Ne6 {[%emt 00:00:45] [%clk 00:03:18]} 19. Rac1 {[%emt 00:00:18] [%clk
00:11:22]} Qb7 {[%emt 00:00:13] [%clk 00:03:15]} 20. Rfd1 {[%emt 00:01:31] [%clk
00:10:02]} Nd7 {[%emt 00:00:34] [%clk 00:02:52]} 21. Nd5 {[%emt 00:00:47] [%clk
00:09:25]} Ne5 {[%emt 00:00:37] [%clk 00:02:24]} 22. Rf1 {[%emt 00:03:09] [%clk
00:06:26]} Nc5 {[%emt 00:00:41] [%clk 00:01:53]} 23. Rcd1 {[%emt 00:00:29] [%clk
00:06:06]} a5 {[%emt 00:00:25] [%clk 00:01:39]} 24. Nec3 {[%emt 00:00:14] [%clk
00:06:02]} Ned7 {[%emt 00:00:31] [%clk 00:01:18]} 25. Nb5 {[%emt 00:00:13] [%clk
00:05:59]} Qb8 {[%emt 00:00:50] [%clk 00:00:38]} 26. Bg5 {[%emt 00:01:29] [%clk
00:04:40]} f6 {[%emt 00:00:25] [%clk 00:00:23]} 27. Bf4 {[%emt 00:00:41] [%clk
00:04:09]} Ne5 {[%emt 00:00:02] [%clk 00:00:31]} 28. Be3 {[%emt 00:00:26] [%clk
00:03:53]} Ned7 {[%emt 00:00:18] [%clk 00:00:23]} 29. Nf4 {[%emt 00:01:15] [%clk
00:02:47]} Rg5 {[%emt 00:00:01] [%clk 00:00:32]} 30. Qe1 {[%emt 00:00:13] [%clk
00:02:45]} Kf7 {[%emt 00:00:07] [%clk 00:00:35]} 31. Bf2 {[%emt 00:00:34] [%clk
00:02:21]} Rh8 {[%emt 00:00:29] [%clk 00:00:16]} 32. Kh1 {[%emt 00:00:06] [%clk
00:02:25]} Re5 {[%emt 00:00:10] [%clk 00:00:16]} 33. Nd5 {[%emt 00:00:26] [%clk
00:02:09]} Reh5 {[%emt 00:00:10] [%clk 00:00:17]} 34. Bg1 {[%emt 00:00:05] [%clk
00:02:15]} g5 {[%emt 00:00:10] [%clk 00:00:16]} 35. Ne3 {[%emt 00:00:07] [%clk
00:02:17]} Ne5 {[%emt 00:00:07] [%clk 00:00:20]} 36. Nf5 {[%emt 00:00:19] [%clk
00:02:08]} Ncd3 {[%emt 00:00:14] [%clk 00:00:16]} 37. Qe3 {[%emt 00:00:08] [%clk
00:02:10]} Nc5 {[%emt 00:00:09] [%clk 00:00:17]} 38. Bh2 {[%emt 00:00:11] [%clk
00:02:08]} Bf8 {[%emt 00:00:13] [%clk 00:00:14]} 39. Qe2 {[%emt 00:00:20] [%clk
00:01:57]} R8h7 {[%emt 00:00:11] [%clk 00:00:14]} 40. Rd2 {[%emt 00:00:19] [%clk
00:01:48]} Kg6 {[%emt 00:00:02] [%clk 00:00:22]} 41. Qd1 {[%emt 00:00:14] [%clk
00:01:44]} Rf7 {[%emt 00:00:18] [%clk 00:00:14]} 42. Qc2 {[%emt 00:00:56] [%clk
00:00:59]} Qa8 {[%emt 00:00:05] [%clk 00:00:19]} 43. a3 {[%emt 00:00:04] [%clk
00:01:04]} Ne6 {[%emt 00:00:11] [%clk 00:00:18]} 44. Rdd1 {[%emt 00:00:10] [%clk
00:01:04]} Kh7 {[%emt 00:00:04] [%clk 00:00:24]} 45. Nc3 {[%emt 00:00:12] [%clk
00:01:02]} Ng6 {[%emt 00:00:12] [%clk 00:00:22]} 46. Nd5 {[%emt 00:00:15] [%clk
00:00:57]} Qb7 {[%emt 00:00:07] [%clk 00:00:25]} 47. b4 {[%emt 00:00:31] [%clk
00:00:37]} axb4 {[%clk 00:00:34]} 48. axb4 {[%clk 00:00:46]} Nd8 {[%emt
00:00:12] [%clk 00:00:32]} 49. Nc3 {[%emt 00:00:32] [%clk 00:00:24]} Nc6 {[%emt
00:00:05] [%clk 00:00:37]} 50. Qb1 {[%emt 00:00:14] [%clk 00:00:20]} Nce5 {[%emt
00:00:06] [%clk 00:00:41]} 51. Qb3 {[%emt 00:00:05] [%clk 00:00:26]} Qc8 {[%emt
00:00:32] [%clk 00:00:19]} 52. Ne3 {[%emt 00:00:05] [%clk 00:00:31]} e6 {[%emt
00:00:08] [%clk 00:00:21]} 53. Nb5 {[%emt 00:00:07] [%clk 00:00:34]} Rd7 {[%emt
00:00:06] [%clk 00:00:25]} 54. Rd2 {[%emt 00:00:06] [%clk 00:00:38]} Nf4 {[%emt
00:00:20] [%clk 00:00:15]} 55. Rfd1 {[%emt 00:00:06] [%clk 00:00:41]} Nf7 {[%emt
00:00:12] [%clk 00:00:13]} 56. Ng4 {[%emt 00:00:14] [%clk 00:00:37]} Kg7 {[%emt
00:00:06] [%clk 00:00:18]} 57. Nd4 {[%emt 00:00:14] [%clk 00:00:34]} Rc7 {[%emt
00:00:05] [%clk 00:00:23]} 58. Bxf4 {[%emt 00:00:12] [%clk 00:00:31]} gxf4
{[%emt 00:00:01] [%clk 00:00:31]} 59. c5 {[%clk 00:00:41]} d5 {[%emt 00:00:28]
[%clk 00:00:13]} 60. exd5 {[%emt 00:00:16] [%clk 00:00:34]} exd5 {[%emt
00:00:10] [%clk 00:00:14]} 61. c6 {[%emt 00:00:04] [%clk 00:00:41]} Ne5 {[%emt
00:00:07] [%clk 00:00:17]} 62. Qxd5 {[%emt 00:00:10] [%clk 00:00:41]} Kg6 {[%emt
00:00:16]} 63. Qe4+ {[%emt 00:00:05] [%clk 00:00:44]} Kg7 {[%emt 00:00:06] [%clk
00:00:18]} 64. Qd5 {[%emt 00:00:14] [%clk 00:00:40]} Kg6 {[%emt 00:00:10] [%clk
00:00:18]} 65. Ne6 {[%emt 00:00:09] [%clk 00:00:40]} Rxc6 {[%emt 00:00:14] [%clk
00:00:14]} 66. Nxf4+ {[%emt 00:00:11] [%clk 00:00:39]} Kg5 {[%emt 00:00:09]
[%clk 00:00:15]} 67. Nxe5 {[%emt 00:00:15] [%clk 00:00:34]} fxe5 {[%emt
00:00:13] [%clk 00:00:11]} 68. Qxe5+ {[%emt 00:00:03] [%clk 00:00:40]} Qf5
{[%emt 00:00:02] [%clk 00:00:19]} 69. Qxf5+ {[%emt 00:00:03] [%clk 00:00:48]}
1-0

[Site "Europe Echecs"]

[Event "Championnat d'Europe Rapide"]
[Date "2024.12.07"]
[White "Narva, Mai"]
[Black "Sutbas, Batuhan"]
[WhiteElo "2413"]
[BlackElo "1885"]
[Round "4.52"]
[Result "1-0"]
[TimeControl "900+10"]

1. e4 {[%emt 00:00:03] [%clk 00:15:17]} e5 {[%emt 00:00:01] [%clk 00:15:18]} 2.
Nf3 {[%emt 00:00:02] [%clk 00:15:25]} Nc6 {[%emt 00:00:04] [%clk 00:15:26]} 3.
Bb5 {[%emt 00:00:03] [%clk 00:15:31]} a6 {[%emt 00:00:03] [%clk 00:15:33]} 4.
Ba4 {[%emt 00:00:03] [%clk 00:15:38]} Nf6 {[%emt 00:00:05] [%clk 00:15:38]} 5.
O-O {[%emt 00:00:04] [%clk 00:15:44]} b5 {[%emt 00:00:06] [%clk 00:15:42]} 6.
Bb3 {[%emt 00:00:03] [%clk 00:15:51]} Be7 {[%emt 00:00:03] [%clk 00:15:49]} 7.
d4 {[%emt 00:00:48] [%clk 00:15:13]} d6 {[%emt 00:02:18] [%clk 00:13:41]} 8. c3
{[%emt 00:00:12] [%clk 00:15:11]} O-O {[%emt 00:00:27] [%clk 00:13:23]} 9. h3
{[%emt 00:00:20] [%clk 00:15:01]} Bb7 {[%emt 00:01:22] [%clk 00:12:11]} 10. Nbd2
{[%emt 00:02:01] [%clk 00:13:11]} h6 {[%emt 00:07:21] [%clk 00:04:59]} 11. Re1
{[%emt 00:00:20] [%clk 00:13:01]} Re8 {[%emt 00:00:03] [%clk 00:05:07]} 12. Nf1
{[%emt 00:00:18] [%clk 00:12:52]} Bf8 {[%emt 00:00:03] [%clk 00:05:13]} 13. Ng3
{[%emt 00:00:33] [%clk 00:12:29]} Na5 {[%emt 00:02:02] [%clk 00:03:22]} 14. Bc2
{[%emt 00:00:10] [%clk 00:12:29]} c5 {[%emt 00:00:07] [%clk 00:03:25]} 15. d5
{[%emt 00:00:52] [%clk 00:11:46]} Bc8 {[%emt 00:00:11] [%clk 00:03:24]} 16. Nd2
{[%emt 00:02:26] [%clk 00:09:30]} Ra7 {[%emt 00:01:03] [%clk 00:02:31]} 17. b4
{[%emt 00:01:06] [%clk 00:08:34]} cxb4 {[%emt 00:00:45] [%clk 00:01:56]} 18.
cxb4 {[%emt 00:00:02] [%clk 00:08:42]} Nc4 {[%emt 00:00:02] [%clk 00:02:04]} 19.
Nxc4 {[%emt 00:01:20] [%clk 00:07:31]} bxc4 {[%emt 00:00:02] [%clk 00:02:12]}
20. Be3 {[%emt 00:00:49] [%clk 00:06:52]} Rb7 {[%emt 00:00:08] [%clk 00:02:14]}
21. Qd2 {[%emt 00:00:07] [%clk 00:06:54]} Bd7 {[%emt 00:00:45] [%clk 00:01:39]}
22. a4 {[%emt 00:00:17] [%clk 00:06:47]} Qb8 {[%emt 00:00:18] [%clk 00:01:31]}
23. Rab1 {[%emt 00:00:18] [%clk 00:06:40]} Rc8 {[%emt 00:00:06] [%clk 00:01:35]}
24. Qc3 {[%emt 00:00:06] [%clk 00:06:43]} Be7 {[%emt 00:00:32] [%clk 00:01:13]}
25. Rec1 {[%emt 00:00:21] [%clk 00:06:33]} Bd8 {[%emt 00:00:11] [%clk 00:01:12]}
26. Nf1 {[%emt 00:00:46] [%clk 00:05:57]} g5 {[%emt 00:01:02] [%clk 00:00:20]}
27. Nd2 {[%emt 00:00:34] [%clk 00:05:33]} Nh5 {[%emt 00:00:03] [%clk 00:00:27]}
28. Bd1 {[%emt 00:00:46] [%clk 00:04:58]} Nf4 {[%emt 00:00:06] [%clk 00:00:31]}
29. Bxf4 {[%emt 00:01:02] [%clk 00:04:06]} gxf4 {[%emt 00:00:02] [%clk
00:00:39]} 30. Nxc4 {[%emt 00:01:17] [%clk 00:02:59]} Rbc7 {[%emt 00:00:03]
[%clk 00:00:47]} 31. Qd3 {[%emt 00:00:04] [%clk 00:03:05]} Bb5 {[%emt 00:00:14]
[%clk 00:00:43]} 32. axb5 {[%emt 00:00:06] [%clk 00:03:09]} axb5 {[%emt
00:00:02] [%clk 00:00:51]} 33. Bg4 {[%emt 00:00:34] [%clk 00:02:44]} bxc4 {[%emt
00:00:12] [%clk 00:00:49]} 34. Qe2 {[%emt 00:00:08] [%clk 00:02:46]} Bg5 {[%emt
00:00:19] [%clk 00:00:41]} 35. Bxc8 {[%emt 00:01:03] [%clk 00:01:53]} f3 {[%emt
00:00:02] [%clk 00:00:48]} 36. Qxf3 {[%emt 00:00:03] [%clk 00:02:00]} Bxc1
{[%emt 00:00:09] [%clk 00:00:50]} 37. Rxc1 {[%emt 00:00:50] [%clk 00:01:20]}
Rxc8 {[%emt 00:00:09] [%clk 00:00:51]} 38. Rc3 {[%emt 00:00:41] [%clk 00:00:49]}
Kf8 {[%emt 00:00:32] [%clk 00:00:29]} 39. Qf5 {[%emt 00:00:39] [%clk 00:00:19]}
Ke8 {[%emt 00:00:06] [%clk 00:00:33]} 40. Rf3 {[%emt 00:00:11] [%clk 00:00:18]}
Qc7 {[%emt 00:00:17] [%clk 00:00:26]} 41. Qh7 {[%emt 00:00:14] [%clk 00:00:14]}
Qe7 {[%emt 00:00:15] [%clk 00:00:22]} 42. Qg8+ {[%emt 00:00:08] [%clk 00:00:16]}
Qf8 {[%emt 00:00:02] [%clk 00:00:31]} 43. Qg4 {[%emt 00:00:03] [%clk 00:00:23]}
Kd8 {[%emt 00:00:12] [%clk 00:00:29]} 44. Rc3 {[%emt 00:00:08] [%clk 00:00:24]}
Qe7 {[%emt 00:00:01] [%clk 00:00:38]} 45. Qe2 {[%emt 00:00:13] [%clk 00:00:21]}
Qc7 {[%emt 00:00:17] [%clk 00:00:32]} 46. Qh5 {[%emt 00:00:12] [%clk 00:00:19]}
Qa7 {[%emt 00:00:12] [%clk 00:00:31]} 47. Rg3 {[%emt 00:00:17] [%clk 00:00:12]}
Kc7 {[%emt 00:00:02] [%clk 00:00:39]} 48. Qxf7+ {[%emt 00:00:02] [%clk
00:00:20]} Kb6 {[%emt 00:00:01] [%clk 00:00:48]} 49. Qe6 {[%emt 00:00:10] [%clk
00:00:19]} Rd8 {[%emt 00:00:21] [%clk 00:00:37]} 50. Qxh6 {[%emt 00:00:10] [%clk
00:00:18]} Qa1+ {[%emt 00:00:04] [%clk 00:00:43]} 51. Kh2 {[%emt 00:00:01] [%clk
00:00:27]} Kb5 {[%emt 00:00:19] [%clk 00:00:34]} 52. Qf6 {[%emt 00:00:04] [%clk
00:00:33]} Qa8 {[%emt 00:00:14] [%clk 00:00:30]} 53. Rg7 {[%emt 00:00:29] [%clk
00:00:14]} c3 {[%emt 00:00:12] [%clk 00:00:29]} 54. Rc7 {[%emt 00:00:05] [%clk
00:00:19]} Kxb4 {[%emt 00:00:13] [%clk 00:00:26]} 55. Qf3 {[%emt 00:00:08] [%clk
00:00:20]} Qa1 {[%emt 00:00:02] [%clk 00:00:34]} 56. Rb7+ {[%emt 00:00:13] [%clk
00:00:17]} Kc4 {[%emt 00:00:18] [%clk 00:00:27]} 57. Qe2+ {[%emt 00:00:01] [%clk
00:00:25]}

[Site "Europe Echecs"]

[Event "Championnat d'Europe Rapide"]
[Date "2024.12.07"]
[White "Pipiras, Filipa Fortuna"]
[Black "Tsolakidou, Stavroula"]
[WhiteElo "2178"]
[BlackElo "2451"]
[Round "4.53"]
[Result "0-1"]
[TimeControl "900+10"]

1. d4 {[%emt 00:00:02] [%clk 00:15:17]} Nf6 {[%emt 00:00:06] [%clk 00:15:15]} 2.
c4 {[%emt 00:00:19] [%clk 00:15:08]} g6 {[%emt 00:00:04] [%clk 00:15:21]} 3. Nc3
{[%emt 00:00:11] [%clk 00:15:08]} Bg7 {[%emt 00:00:04] [%clk 00:15:27]} 4. e4
{[%emt 00:00:03] [%clk 00:15:15]} d6 {[%emt 00:00:02] [%clk 00:15:34]} 5. Be2
{[%emt 00:00:02] [%clk 00:15:23]} O-O {[%emt 00:00:04] [%clk 00:15:41]} 6. Be3
{[%emt 00:00:07] [%clk 00:15:26]} Na6 {[%emt 00:00:06] [%clk 00:15:46]} 7. h4
{[%emt 00:00:11]} h5 {[%clk 00:15:51]} 8. Nf3 {[%emt 00:00:17] [%clk 00:15:23]}
Ng4 {[%emt 00:00:26] [%clk 00:15:35]} 9. Bg5 {[%emt 00:00:07] [%clk 00:15:26]}
c6 {[%emt 00:00:08] [%clk 00:15:38]} 10. Qd2 {[%emt 00:01:19] [%clk 00:14:17]}
Nc7 {[%emt 00:00:14] [%clk 00:15:34]} 11. Bf4 {[%emt 00:05:17] [%clk 00:09:09]}
e5 {[%emt 00:00:46] [%clk 00:14:58]} 12. Bg3 {[%emt 00:00:35] [%clk 00:08:44]}
Ne6 {[%emt 00:00:39] [%clk 00:14:30]} 13. d5 {[%emt 00:00:23] [%clk 00:08:32]}
Nd4 {[%emt 00:00:23] [%clk 00:14:16]} 14. Nxd4 {[%emt 00:00:48] [%clk 00:07:53]}
exd4 {[%emt 00:00:02] [%clk 00:14:24]} 15. Nd1 {[%emt 00:00:02] [%clk 00:08:02]}
c5 {[%emt 00:02:31] [%clk 00:12:03]} 16. O-O {[%emt 00:01:14] [%clk 00:06:57]}
Bf6 {[%emt 00:03:59] [%clk 00:08:14]} 17. f3 {[%emt 00:00:27] [%clk 00:06:40]}
Ne5 {[%emt 00:00:55] [%clk 00:07:29]} 18. f4 {[%emt 00:02:51] [%clk 00:03:59]}
Ng4 {[%emt 00:00:19] [%clk 00:07:20]} 19. Bxg4 {[%emt 00:00:15] [%clk 00:03:54]}
Bxg4 {[%emt 00:00:09] [%clk 00:07:21]} 20. Nf2 {[%emt 00:00:43] [%clk 00:03:21]}
Bxh4 {[%emt 00:00:34] [%clk 00:06:56]} 21. Bh2 {[%emt 00:00:48] [%clk 00:02:44]}
a6 {[%emt 00:03:42] [%clk 00:03:26]} 22. e5 {[%emt 00:00:51] [%clk 00:02:02]}
Bf5 {[%emt 00:00:08] [%clk 00:03:28]} 23. Rae1 {[%emt 00:00:28] [%clk 00:01:44]}
b5 {[%emt 00:00:02] [%clk 00:03:37]} 24. b3 {[%emt 00:00:21] [%clk 00:01:32]}
bxc4 {[%emt 00:00:03] [%clk 00:03:44]} 25. bxc4 {[%emt 00:00:01] [%clk
00:01:40]} Rb8 {[%emt 00:00:04] [%clk 00:03:51]} 26. g3 {[%emt 00:00:21] [%clk
00:01:28]} Be7 {[%emt 00:00:03] [%clk 00:03:58]} 27. Ne4 {[%emt 00:00:15] [%clk
00:01:23]} Rb4 {[%emt 00:00:19] [%clk 00:03:49]} 28. Qc1 {[%emt 00:00:16] [%clk
00:01:16]} Kg7 {[%emt 00:00:42] [%clk 00:03:17]} 29. Rf2 {[%emt 00:00:31] [%clk
00:00:55]} Qb6 {[%emt 00:00:18] [%clk 00:03:09]} 30. Rfe2 {[%emt 00:00:34] [%clk
00:00:31]} Rb8 {[%emt 00:00:09] [%clk 00:03:11]} 31. Kg2 {[%emt 00:00:04] [%clk
00:00:37]} Rb2 {[%emt 00:01:19] [%clk 00:02:02]} 32. Bg1 {[%emt 00:00:19] [%clk
00:00:28]} Bxe4+ {[%emt 00:00:03] [%clk 00:02:09]} 33. Kh3 {[%emt 00:00:12]
[%clk 00:00:26]} Bf5+ {[%emt 00:00:04] [%clk 00:02:15]} 34. Kh2 {[%emt 00:00:03]
[%clk 00:00:33]} d3 {[%emt 00:00:15] [%clk 00:02:11]} 35. Rd2 {[%emt 00:00:10]
[%clk 00:00:32]} Rxd2+ {[%emt 00:00:08] [%clk 00:02:13]} 36. Qxd2 {[%emt
00:00:02] [%clk 00:00:41]} Qb2 {[%emt 00:00:02] [%clk 00:02:21]} 37. Qf2 {[%emt
00:00:25] [%clk 00:00:26]} Qxf2+ {[%emt 00:00:08] [%clk 00:02:23]} 38. Bxf2
{[%emt 00:00:01] [%clk 00:00:35]} Rb2 {[%emt 00:00:02] [%clk 00:02:31]} 39. Kg1
{[%emt 00:00:12] [%clk 00:00:32]} d2 {[%emt 00:00:02] [%clk 00:02:39]} 40. Rd1
{[%emt 00:00:12] [%clk 00:00:30]} Rb1 {[%emt 00:00:02] [%clk 00:02:47]} 0-1

[Site "Europe Echecs"]

[Event "Championnat d'Europe Rapide"]
[Date "2024.12.07"]
[White "Diermair, Andreas"]
[Black "Mohammad, Fahim"]
[WhiteElo "2433"]
[BlackElo "2196"]
[Round "4.54"]
[Result "1-0"]
[TimeControl "900+10"]

1. d4 {[%emt 00:00:03] [%clk 00:15:17]} Nf6 {[%emt 00:03:00] [%clk 00:12:17]} 2.
Nf3 {[%emt 00:00:06] [%clk 00:15:24]} g6 {[%emt 00:00:05] [%clk 00:12:22]} 3. g3
{[%emt 00:00:05] [%clk 00:15:29]} Bg7 {[%emt 00:00:31] [%clk 00:12:02]} 4. Bg2
{[%emt 00:00:02] [%clk 00:15:36]} O-O {[%emt 00:01:01] [%clk 00:11:11]} 5. O-O
{[%emt 00:00:05] [%clk 00:15:42]} c5 {[%emt 00:00:06] [%clk 00:11:15]} 6. dxc5
{[%emt 00:00:08] [%clk 00:15:44]} Na6 {[%emt 00:00:30] [%clk 00:10:54]} 7. Be3
{[%emt 00:00:13] [%clk 00:15:40]} Qc7 {[%emt 00:00:32] [%clk 00:10:32]} 8. Nc3
{[%emt 00:00:21] [%clk 00:15:29]} Nxc5 {[%emt 00:03:38] [%clk 00:07:04]} 9. Nb5
{[%emt 00:00:07] [%clk 00:15:32]} Qb6 {[%emt 00:00:33] [%clk 00:06:41]} 10. c4
{[%emt 00:02:00] [%clk 00:13:42]} Ng4 {[%emt 00:02:21] [%clk 00:04:30]} 11. Bd4
{[%emt 00:00:55] [%clk 00:12:57]} e5 {[%emt 00:00:38] [%clk 00:04:02]} 12. Bxc5
{[%emt 00:00:25] [%clk 00:12:42]} Qxc5 {[%emt 00:00:02] [%clk 00:04:11]} 13. Nd6
{[%emt 00:00:12] [%clk 00:12:40]} e4 {[%emt 00:01:09] [%clk 00:03:12]} 14. Nxe4
{[%emt 00:00:12] [%clk 00:12:37]} Qxc4 {[%emt 00:00:04] [%clk 00:03:18]} 15. Nd6
{[%emt 00:01:00] [%clk 00:11:47]} Qa6 {[%emt 00:00:04] [%clk 00:03:25]} 16. Ng5
{[%emt 00:01:08] [%clk 00:10:49]} Ne5 {[%emt 00:00:48] [%clk 00:02:47]} 17. Rc1
{[%emt 00:02:16] [%clk 00:08:42]} h6 {[%emt 00:00:28] [%clk 00:02:29]} 18. Ngxf7
{[%emt 00:00:45] [%clk 00:08:07]} Rxf7 {[%emt 00:01:23] [%clk 00:01:17]} 19. Qd5
{[%emt 00:02:01] [%clk 00:06:15]} Bf8 {[%emt 00:01:03] [%clk 00:00:24]} 20. Nxc8
{[%emt 00:01:01] [%clk 00:05:24]} Qf6 {[%emt 00:00:10] [%clk 00:00:24]} 21. Qxb7
{[%emt 00:00:25] [%clk 00:05:09]} Rxc8 {[%emt 00:00:04] [%clk 00:00:29]} 22.
Rxc8 {[%emt 00:00:04] [%clk 00:05:14]} Kh7 {[%emt 00:00:14] [%clk 00:00:26]} 23.
Bd5 {[%emt 00:00:10] [%clk 00:05:14]} Re7 {[%emt 00:00:21] [%clk 00:00:15]} 24.
Qxa7 {[%emt 00:00:40] [%clk 00:04:44]} h5 {[%emt 00:00:06] [%clk 00:00:18]} 25.
Qa8 {[%emt 00:00:13] [%clk 00:04:40]} Bg7 {[%emt 00:00:02] [%clk 00:00:26]} 26.
Re8 {[%emt 00:00:08] [%clk 00:04:41]} Qd6 {[%emt 00:00:18] [%clk 00:00:18]} 27.
Rxe7 {[%emt 00:00:21] [%clk 00:04:31]} Qxe7 {[%emt 00:00:01] [%clk 00:00:27]}
28. a4 {[%emt 00:00:51] [%clk 00:03:50]} Ng4 {[%emt 00:00:06] [%clk 00:00:31]}
29. Bf3 {[%emt 00:00:06] [%clk 00:03:54]} Nf6 {[%emt 00:00:10] [%clk 00:00:31]}
30. a5 {[%emt 00:00:05] [%clk 00:03:59]} g5 {[%emt 00:00:02] [%clk 00:00:39]}
31. a6 {[%emt 00:00:04] [%clk 00:04:05]} g4 {[%emt 00:00:03] [%clk 00:00:46]}
32. Bg2 {[%clk 00:04:13]} 1-0

[Site "Europe Echecs"]